fUSD/lending_fUSD_20250331
["ID","MTS","AMOUNT","RATE_DAILY","PERIOD"]
[356913393,1743426650790,-500.0,0.00046849,120]
[356913394,1743426650800,-500.0,0.00046849,120]
[356913395,1743426650810,-500.0,0.00046849,120]
[356913396,1743426650903,-500.0,0.00046849,120]
[356913397,1743426650926,-518.70167017,0.00046849,120]
[356913398,1743426650936,-496.49582602,0.00046849,2]
[356913399,1743426650946,-500.0,0.00046849,120]
[356913400,1743426650956,-500.0,0.00046849,120]
[356913401,1743426650967,-508.50657924,0.00046849,120]
[356913402,1743426650978,-340.56894622,0.00046849,120]
[356913403,1743426650989,-413.2675585,0.00046849,120]
[356913404,1743426650998,-500.0,0.00046849,120]
[356913405,1743426651009,-583.52560247,0.00046849,120]
[356913406,1743426651019,-531.05276532,0.00046849,120]
[356913407,1743426651028,-845.51,0.00046849,120]
[356913408,1743426651038,-504.49413878,0.00046849,120]
[356913409,1743426651047,-215.583158,0.00046849,14]
[356913410,1743426651057,-500.0,0.00046849,120]
[356913411,1743426651067,-215.583158,0.00046849,14]
[356913412,1743426651077,-500.0,0.00046849,120]
[356913413,1743426651086,-500.0,0.00046849,120]
[356913414,1743426651095,-535.89,0.00046849,120]
[356913415,1743426651104,-500.0,0.00046849,120]
[356913416,1743426651114,-500.0,0.00046849,120]
[356913417,1743426651124,-500.0,0.00046849,120]
[356913418,1743426651134,-500.0,0.00046849,120]
[356913419,1743426651143,-500.0,0.00046849,2]
[356913420,1743426651153,-647.87533867,0.00046849,120]
[356913421,1743426651162,-500.0,0.00046849,120]
[356913422,1743426651172,-205.26744121,0.00046849,120]
[356913423,1743426651182,-500.0,0.00046849,120]
[356913424,1743426651191,-958.8,0.00046849,2]
[356913425,1743426651201,-500.0,0.00046849,120]
[356913426,1743426651210,-500.0,0.00046849,120]
[356913427,1743426651221,-500.0,0.00046849,120]
[356913428,1743426651230,-381.8566,0.00046849,120]
[356913429,1743426651240,-500.0,0.00046849,120]
[356913430,1743426651249,-500.0,0.00046849,120]
[356913431,1743426651258,-500.0,0.00046849,120]
[356913432,1743426651268,-500.0,0.00046849,2]
[356913433,1743426651278,-500.0,0.00046849,120]
[356913434,1743426651287,-500.0,0.00046849,120]
[356913435,1743426651296,-500.0,0.00046849,120]
[356913436,1743426651305,-500.0,0.00046849,120]
[356913437,1743426651315,-500.0,0.00046849,120]
[356913438,1743426651325,-70239.38,0.00046849,7]
[356913439,1743426651334,-571.91604756,0.00046849,120]
[356913440,1743426651343,-151.0,0.00046849,14]
[356913441,1743426651352,-151.0,0.00046849,14]
[356913442,1743426651362,-500.0,0.00046849,120]
[356913443,1743426651371,-345.95927945,0.00046849,120]
[356913444,1743426651380,-391.77891183,0.00046849,120]
[356913445,1743426651390,-173.495788,0.00046849,14]
[356913446,1743426651410,-1221.14,0.00046849,2]
[356913447,1743426651420,-201.93286099,0.00046899,2]
[356913448,1743426651430,-5735.65385393,0.00046957,3]
[356913449,1743426651440,-194.55346623,0.00047023,26]
[356913450,1743426651450,-5000.0,0.00047033,120]
[356913451,1743426651461,-2700.74195542,0.00047103,3]
[356913452,1743426651471,-215.583158,0.00047113,14]
[356913453,1743426651481,-215.583158,0.00047113,14]
[356913454,1743426651492,-24306.6775988,0.00047113,3]
[356913455,1743426651502,-500.0,0.00047123,120]
[356913456,1743426651512,-500.0,0.00047123,120]
[356913457,1743426651522,-500.0,0.00047123,120]
[356913458,1743426651532,-476.4314305,0.00047123,120]
[356913459,1743426651541,-500.0,0.00047123,120]
[356913460,1743426651551,-500.0,0.00047123,120]
[356913461,1743426651560,-500.0,0.00047123,120]
[356913462,1743426651570,-508.53823877,0.00047123,120]
[356913463,1743426651580,-500.0,0.00047123,120]
[356913464,1743426651590,-500.0,0.00047123,120]
[356913465,1743426651600,-508.20513495,0.00047123,120]
[356913466,1743426651609,-515.11609963,0.00047123,120]
[356913467,1743426651619,-500.0,0.00047123,120]
[356913468,1743426651629,-500.0,0.00047123,2]
[356913469,1743426651639,-500.0,0.00047123,120]
[356913470,1743426651649,-500.0,0.00047123,120]
[356913471,1743426651658,-500.0,0.00047123,120]
[356913472,1743426651669,-500.0,0.00047123,120]
[356913473,1743426651679,-510.23890321,0.00047123,120]
[356913474,1743426651689,-500.0,0.00047123,120]
[356913475,1743426651701,-514.26668217,0.00047123,120]
[356913476,1743426651715,-513.4,0.00047123,120]
[356913477,1743426651725,-500.0,0.00047123,120]
[356913478,1743426651735,-500.0,0.00047123,120]
[356913479,1743426651746,-732.51,0.00047123,120]
[356913480,1743426651757,-500.0,0.00047123,120]
[356913481,1743426651767,-500.0,0.00047123,120]
[356913482,1743426651779,-500.0,0.00047123,120]
[356913483,1743426651789,-500.0,0.00047123,120]
[356913484,1743426651799,-500.0,0.00047123,120]
[356913485,1743426651809,-500.0,0.00047123,120]
[356913486,1743426651819,-1000.0,0.00047123,120]
[356913487,1743426651829,-500.0,0.00047123,120]
[356913488,1743426651839,-510.77063573,0.00047123,120]
[356913489,1743426651849,-590.84,0.00047123,120]
[356913490,1743426651859,-500.0,0.00047123,120]
[356913491,1743426651870,-500.0,0.00047123,120]
[356913492,1743426651880,-520.28205638,0.00047123,120]
[356913493,1743426651890,-503.57777953,0.00047123,120]
[356913494,1743426651900,-500.0,0.00047123,120]
[356913495,1743426651911,-587.19253098,0.00047123,120]
[356913496,1743426651925,-151.605708,0.00047123,14]
[356913497,1743426651936,-151.877419,0.00047123,14]
[356913498,1743426651946,-151.0,0.00047123,5]
[356913499,1743426651957,-492.73372815,0.00047123,120]
[356913500,1743426651968,-153.176722,0.00047123,14]
[356913501,1743426651979,-557.91967745,0.00047123,120]
[356913502,1743426651989,-505.52202561,0.00047123,120]
[356913503,1743426651999,-269.901292,0.00047123,14]
[356913504,1743426652010,-500.0,0.00047123,120]
[356913505,1743426652021,-500.0,0.00047123,120]
[356913506,1743426652031,-509.22321979,0.00047123,120]
[356913507,1743426652042,-237.55941905,0.00047123,120]
[356913508,1743426652052,-500.0,0.00047123,30]
[356913509,1743426652062,-514.02249646,0.00047123,120]
[356913510,1743426652073,-528.59177777,0.00047123,120]
[356913511,1743426652083,-500.0,0.00047123,120]
[356913512,1743426652093,-500.0,0.00047123,120]
[356913513,1743426652103,-452.08868885,0.00047123,120]
[356913514,1743426652113,-503.82787725,0.00047123,120]
[356913515,1743426652123,-529.2662959,0.00047123,120]
[356913516,1743426652133,-500.0,0.00047123,120]
[356913517,1743426652143,-151.0,0.00047123,14]
[356913518,1743426652152,-500.0,0.00047123,120]
[356913519,1743426652162,-927.019031,0.00047123,14]
[356913520,1743426652173,-927.019031,0.00047123,14]
[356913521,1743426652183,-151.0,0.00047123,14]
[356913522,1743426652193,-500.0,0.00047123,120]
[356913523,1743426652203,-668.49,0.00047123,120]
[356913524,1743426652213,-507.48561869,0.00047123,120]
[356913525,1743426652223,-500.0,0.00047123,120]
[356913526,1743426652233,-500.0,0.00047123,120]
[356913527,1743426652243,-500.0,0.00047123,120]
[356913528,1743426652253,-500.0,0.00047123,120]
[356913529,1743426652262,-500.0,0.00047123,120]
[356913530,1743426652275,-3707.64,0.00047123,120]
[356913531,1743426652285,-500.0,0.00047123,120]
[356913532,1743426652295,-151.0,0.00047123,14]
[356913533,1743426652305,-500.0,0.00047123,120]
[356913534,1743426652315,-500.0,0.00047123,120]
[356913535,1743426652325,-500.0,0.00047123,120]
[356913536,1743426652335,-616.05,0.00047123,120]
[356913537,1743426652345,-618.3616357,0.00047123,120]
[356913538,1743426652355,-517.25259812,0.00047123,120]
[356913539,1743426652365,-500.0,0.00047123,120]
[356913540,1743426652375,-509.37914978,0.00047123,120]
[356913541,1743426652385,-500.0,0.00047123,120]
[356913542,1743426652394,-151.0,0.00047123,14]
[356913543,1743426652405,-500.0,0.00047123,120]
[356913544,1743426652415,-500.0,0.00047123,120]
[356913545,1743426652425,-574.74273935,0.00047123,120]
[356913546,1743426652435,-500.0,0.00047123,120]
[356913547,1743426652445,-502.30387784,0.00047123,120]
[356913548,1743426652455,-1307.37,0.00047123,120]
[356913549,1743426652465,-500.0,0.00047123,120]
[356913550,1743426652475,-500.0,0.00047123,120]
[356913551,1743426652485,-500.0,0.00047123,120]
[356913552,1743426652495,-500.0,0.00047123,120]
[356913553,1743426652505,-500.0,0.00047123,120]
[356913554,1743426652515,-196.203209,0.00047123,14]
[356913555,1743426652525,-196.203209,0.00047123,14]
[356913556,1743426652535,-500.0,0.00047123,120]
[356913557,1743426652545,-516.06659595,0.00047123,120]
[356913558,1743426652555,-500.0,0.00047123,120]
[356913559,1743426652565,-500.0,0.00047123,7]
[356913560,1743426652575,-500.0,0.00047123,120]
[356913561,1743426652585,-682.77,0.00047123,120]
[356913562,1743426652594,-500.0,0.00047123,120]
[356913563,1743426652604,-500.0,0.00047123,120]
[356913564,1743426652613,-500.0,0.00047123,120]
[356913565,1743426652626,-500.0,0.00047123,120]
[356913566,1743426652636,-500.0,0.00047123,120]
[356913567,1743426652646,-500.0,0.00047123,120]
[356913568,1743426652656,-505.9670443,0.00047123,120]
[356913569,1743426652666,-845.51,0.00047123,120]
[356913570,1743426652675,-500.0,0.00047123,120]
[356913571,1743426652685,-500.0,0.00047123,120]
[356913572,1743426652696,-500.0,0.00047123,120]
[356913573,1743426652709,-535.89,0.00047123,120]
[356913574,1743426652719,-528.59058406,0.00047123,120]
[356913575,1743426652729,-507.81400767,0.00047123,120]
[356913576,1743426652739,-500.0,0.00047123,120]
[356913577,1743426652749,-500.0,0.00047123,120]
[356913578,1743426652759,-534.07518454,0.00047123,2]
[356913579,1743426652769,-500.0,0.00047123,120]
[356913580,1743426652779,-386.52186431,0.00047123,120]
[356913581,1743426652789,-958.8,0.00047123,2]
[356913582,1743426652799,-598.82102282,0.00047123,120]
[356913583,1743426652808,-500.0,0.00047123,120]
[356913584,1743426652818,-500.0,0.00047123,120]
[356913585,1743426652828,-500.0,0.00047123,120]
[356913586,1743426652838,-500.0,0.00047123,120]
[356913587,1743426652848,-511.65216708,0.00047123,120]
[356913588,1743426652858,-500.0,0.00047123,2]
[356913589,1743426652868,-500.0,0.00047123,120]
[356913590,1743426652877,-500.0,0.00047123,120]
[356913591,1743426652888,-500.0,0.00047123,120]
[356913592,1743426652898,-500.0,0.00047123,120]
[356913593,1743426652908,-500.0,0.00047123,120]
[356913594,1743426652917,-70239.38,0.00047123,7]
[356913595,1743426652927,-500.0,0.00047123,120]
[356913596,1743426652936,-1221.14,0.00047123,2]
[356913597,1743426652946,-318.756,0.00047125,120]
[356913598,1743426652956,-318.757,0.00047125,120]
[356913599,1743426652966,-318.756,0.00047125,120]
[356913600,1743426652976,-318.757,0.00047125,120]
[356913601,1743426652986,-318.757,0.00047125,120]
[356913602,1743426652995,-234.0,0.000473,30]
[356913603,1743426653005,-500.0,0.00047386,2]
[356913604,1743426653014,-721.11,0.00047386,120]
[356913605,1743426653024,-16204.4517325,0.00047387,3]
[356913606,1743426653034,-151.760915,0.00047387,14]
[356913607,1743426653044,-219.064945,0.00047387,14]
[356913608,1743426653054,-151.0,0.00047387,14]
[356913609,1743426653064,-558.09497087,0.00047397,120]
[356913610,1743426653074,-151.0,0.00047397,14]
[356913611,1743426653084,-151.0,0.00047397,14]
[356913612,1743426653093,-152.911864,0.00047397,14]
[356913613,1743426653109,-151.0,0.00047397,14]
[356913614,1743426653118,-315.71570491,0.00047397,120]
[356913615,1743426653128,-151.0,0.00047397,14]
[356913616,1743426653137,-732.51,0.00047397,120]
[356913617,1743426653147,-348.57456143,0.00047397,120]
[356913618,1743426653157,-500.0,0.00047397,120]
[356913619,1743426653167,-152.453286,0.00047397,14]
[356913620,1743426653176,-937.986827,0.00047397,14]
[356913621,1743426653186,-937.986827,0.00047397,14]
[356913622,1743426653196,-590.84,0.00047397,120]
[356913623,1743426653205,-500.0,0.00047397,120]
[356913624,1743426653215,-668.49,0.00047397,120]
[356913625,1743426653225,-3707.64,0.00047397,120]
[356913626,1743426653236,-500.0,0.00047397,120]
[356913627,1743426653246,-454.80970671,0.00047397,120]
[356913628,1743426653256,-1307.37,0.00047397,120]
[356913629,1743426653266,-500.0,0.00047397,120]
[356913630,1743426653275,-682.77,0.00047397,120]
[356913631,1743426653285,-500.0,0.00047397,120]
[356913632,1743426653295,-500.0,0.00047397,120]
[356913633,1743426653305,-845.51,0.00047397,120]
[356913634,1743426653315,-215.583158,0.00047397,14]
[356913635,1743426653332,-215.583158,0.00047397,14]
[356913636,1743426653345,-500.0,0.00047397,120]
[356913637,1743426653355,-535.89,0.00047397,120]
[356913638,1743426653365,-500.0,0.00047397,120]
[356913639,1743426653524,-177.13772995,0.00047397,120]
[356913640,1743426653535,-958.8,0.00047397,2]
[356913641,1743426653545,-500.14935,0.00047397,120]
[356913642,1743426653555,-70239.38,0.00047397,7]
[356913643,1743426653565,-1221.14,0.00047397,2]
[356913644,1743426653574,-2700.74195542,0.0004749,3]
[356913645,1743426653584,-3625.06060109,0.000475,7]
[356913646,1743426653594,-8102.22586626,0.00047516,3]
[356913647,1743426653604,-48052.66,0.00047526,120]
[356913648,1743426653614,-232.103111,0.00047526,14]
[356913649,1743426653623,-232.103111,0.00047526,14]
[356913650,1743426653633,-151.0,0.00047526,14]
[356913651,1743426653642,-151.0,0.00047526,14]
[356913652,1743426653651,-196.203209,0.00047526,14]
[356913653,1743426653661,-196.203209,0.00047526,14]
[356913654,1743426653672,-16204.4517325,0.00047661,3]
[356913655,1743426653682,-500.0,0.0004767,2]
[356913656,1743426653692,-151.0,0.00047671,14]
[356913657,1743426653703,-151.809987,0.00047671,14]
[356913658,1743426653719,-152.712861,0.00047671,14]
[356913659,1743426653729,-732.51,0.00047671,120]
[356913660,1743426653739,-590.84,0.00047671,120]
[356913661,1743426653750,-151.0,0.00047671,14]
[356913662,1743426653760,-927.019031,0.00047671,14]
[356913663,1743426653770,-927.019031,0.00047671,14]
[356913664,1743426653780,-280.866338,0.00047671,14]
[356913665,1743426653792,-500.0,0.00047671,120]
[356913666,1743426653803,-668.49,0.00047671,120]
[356913667,1743426653813,-3707.64,0.00047671,120]
[356913668,1743426653823,-585.56631966,0.00047671,120]
[356913669,1743426653833,-1307.37,0.00047671,120]
[356913670,1743426653843,-500.0,0.00047671,120]
[356913671,1743426653852,-682.77,0.00047671,120]
[356913672,1743426653862,-500.0,0.00047671,120]
[356913673,1743426653871,-500.0,0.00047671,120]
[356913674,1743426653880,-845.51,0.00047671,120]
[356913675,1743426653890,-500.0,0.00047671,120]
[356913676,1743426653900,-535.89,0.00047671,120]
[356913677,1743426653910,-393.06784318,0.00047671,120]
[356913678,1743426653920,-958.8,0.00047671,2]
[356913679,1743426653931,-70239.38,0.00047671,7]
[356913680,1743426653940,-1221.14,0.00047671,2]
[356913681,1743426653950,-1000.0,0.000477,7]
[356913682,1743426653960,-150.0,0.00047751,7]
[356913683,1743426653972,-1000.0,0.000478,120]
[356913684,1743426653982,-150.0,0.00047802,7]
[356913685,1743426653992,-150.0,0.00047804,7]
[356913686,1743426654003,-150.0,0.00047844,7]
[356913687,1743426654014,-150.0,0.00047847,7]
[356913688,1743426654024,-150.0,0.00047904,7]
[356913689,1743426654033,-150.0,0.00047924,7]
[356913690,1743426654043,-2700.74195542,0.00047925,4]
[356913691,1743426654054,-156.55656,0.00047925,14]
[356913692,1743426654064,-937.986827,0.00047925,14]
[356913693,1743426654075,-937.986827,0.00047925,14]
[356913694,1743426654085,-5401.48391084,0.00047935,4]
[356913695,1743426654095,-232.103111,0.00047935,14]
[356913696,1743426654106,-232.103111,0.00047935,14]
[356913697,1743426654116,-732.51,0.00047945,120]
[356913698,1743426654126,-590.84,0.00047945,120]
[356913699,1743426654136,-500.0,0.00047945,120]
[356913700,1743426654147,-668.49,0.00047945,120]
[356913701,1743426654156,-3707.64,0.00047945,120]
[356913702,1743426654166,-1307.37,0.00047945,120]
[356913703,1743426654176,-500.0,0.00047945,120]
[356913704,1743426654187,-682.77,0.00047945,120]
[356913705,1743426654197,-500.0,0.00047945,120]
[356913706,1743426654206,-500.0,0.00047945,120]
[356913707,1743426654218,-845.51,0.00047945,120]
[356913708,1743426654228,-215.583158,0.00047945,14]
[356913709,1743426654238,-215.583158,0.00047945,14]
[356913710,1743426654248,-500.0,0.00047945,120]
[356913711,1743426654257,-535.89,0.00047945,120]
[356913712,1743426654267,-958.8,0.00047945,2]
[356913713,1743426654277,-70239.38,0.00047945,7]
[356913714,1743426654287,-300.0,0.00047953,7]
[356913715,1743426654297,-171.97,0.00047953,2]
[356913716,1743426654306,-150.0,0.00047956,7]
[356913717,1743426654315,-150.0,0.00047958,7]
[356913718,1743426654325,-500.0,0.00047973,120]
[356913719,1743426654335,-565.27413394,0.00047973,120]
[356913720,1743426654344,-973.62060855,0.0004798,14]
[356913721,1743426654353,-705.01259921,0.00047987,15]
[356913722,1743426654363,-332.79732881,0.0004799,14]
[356913723,1743426654372,-369.26127957,0.00047999,2]
[356913724,1743426654381,-721.11,0.00047999,120]
[356913725,1743426654390,-150.0,0.00047999,120]
[356913726,1743426654399,-234776.83672511,0.00048,2]
[356913727,1743426654652,-1221.14,0.00047945,2]
[356913728,1743426654662,-40559.79118743,0.00048,2]
[356913729,1743426654677,-24896.39683163,0.00048,2]
[356913730,1743426654689,-2716.985,0.00048,2]
[356913731,1743426654705,-488.8400488,0.00048,2]
[356913732,1743426654721,-461.29819901,0.00048,2]
[356913733,1743426654733,-527.27449048,0.00048,2]
[356913734,1743426654744,-3510.93859287,0.00048,2]
[356913735,1743426654757,-2243.22143039,0.00048,2]
[356913737,1743427508324,163872.38840875,0.00015,2]
[356913738,1743427508526,627.55927627,0.0003354,90]
[356913739,1743427510425,-184.39,0.00015,2]
[356913740,1743427510948,999.999996,0.0003354,120]
[356913741,1743427512823,486.94135227,0.0003354,30]
[356913742,1743427512873,478.71815245,0.0003354,91]
[356913743,1743427520029,592.4646237,0.0003354,120]
[356913744,1743427520250,554.91521212,9e-05,2]
[356913745,1743427520816,1972.47833054,0.0003354,120]
[356913746,1743427521809,1076.22426829,0.0003354,120]
[356913747,1743427524016,402.59230063,0.0003354,120]
[356913748,1743427527159,823.54280358,0.0003354,30]
[356913749,1743427528512,1937.62166761,0.0003354,30]
[356913750,1743427529148,696.35828129,0.0003354,30]
[356913751,1743427534074,-152.35,0.00015,2]
[356913752,1743427538254,160.93215626,0.0003354,120]
[356913753,1743427540183,1323.62388363,0.0003354,120]
[356913754,1743427541795,928.26079427,0.0003354,120]
[356913755,1743427544034,1600.30169354,0.0003354,120]
[356913756,1743427547150,347.27375084,0.0003354,120]
[356913757,1743427556052,1401.38050459,6.94e-05,2]
[356913758,1743427556161,-150.7605137,0.0001489,2]
[356913759,1743427561904,597.25361049,0.0003354,90]
[356913760,1743427561942,350.0,0.00014945,12]
[356913761,1743427562312,-150.0,0.0001489,2]
[356913762,1743427565914,559.71561914,0.0003354,120]
[356913763,1743427566070,-151.6824,0.0001489,2]
[356913764,1743427568894,822.99448094,0.0003354,120]
[356913765,1743427570101,200.90232345,0.0003354,60]
[356913766,1743427570148,-3761.743128,0.0001489,2]
[356913767,1743427570170,-150.0,0.00014945,2]
[356913768,1743427570193,-300.0,0.00014999,2]
[356913769,1743427570220,-187839.256872,0.00015,2]
[356913770,1743427573772,273.9837557,0.0003354,30]
[356913771,1743427574891,1901.44234046,0.0003354,120]
[356913772,1743427576303,-150000.0,0.00015,2]
[356913773,1743427577328,208.27498354,0.0003354,120]
[356913774,1743427579284,-150000.0,0.00015,2]
[356913775,1743427582671,1901.10926561,0.0003354,120]
[356913776,1743427587869,1210.86068944,0.0003354,120]
[356913777,1743427590937,-100000.0,0.00015,2]
[356913778,1743427591255,199.41086217,0.0003354,60]
[356913779,1743427591576,-100000.0,0.00015,2]
[356913780,1743427602251,-165.4740612,0.00014999,2]
[356913781,1743427614047,215.79621021,0.0003354,120]
[356913782,1743427620834,1821.42447193,0.0003354,120]
[356913783,1743427621255,1369.72380584,0.0003354,120]
[356913784,1743427626514,700000.0,0.0003354,30]
[356913785,1743427633797,329.73053046,0.0003354,120]
[356913786,1743427641950,151.0,0.0003354,30]
[356913787,1743427642713,156.587,0.0003354,30]
[356913788,1743427643399,162.380719,0.0003354,30]
[356913789,1743427644034,168.3888056,0.0003354,30]
[356913790,1743427644726,174.61919141,0.0003354,30]
[356913791,1743427645389,181.08010149,0.0003354,30]
[356913792,1743427646658,187.78006525,0.0003354,30]
[356913793,1743427647915,194.72792766,0.0003354,30]
[356913794,1743427648623,201.93286099,0.0003354,30]
[356913795,1743427649367,209.40437684,0.0003354,30]
[356913796,1743427650003,217.15233878,0.0003354,30]
[356913797,1743427650715,225.18697532,0.0003354,30]
[356913798,1743427651535,233.51889341,0.0003354,30]
[356913799,1743427652765,242.15909246,0.0003354,30]
[356913800,1743427653488,242.15909246,0.0003354,30]
[356913801,1743427655334,819.03357032,0.0003354,120]
[356913802,1743427659680,2027.42342474,0.0003354,120]
[356913803,1743427664898,661.53961427,0.0003354,120]
[356913804,1743427667729,1081.80245599,0.0003354,120]
[356913805,1743427672293,368.47413201,0.0003354,30]
[356913806,1743427673261,823.15000061,0.0003354,120]
[356913807,1743427677120,5172.13242212,0.0001,2]
[356913808,1743427677144,10000.0,0.0001,2]
[356913809,1743427677166,1067.03688203,0.0001,2]
[356913810,1743427681459,652.61685827,0.0003354,30]
[356913811,1743427683027,951.58483737,0.0003354,120]
[356913812,1743427687159,209.94174519,9.5e-05,2]
[356913813,1743427690104,286.18511364,0.0003354,30]
[356913814,1743427691709,150.0,0.0001,2]
[356913815,1743427707145,352.07371363,0.0003354,120]
[356913816,1743427711361,1282.47979826,0.0003354,120]
[356913817,1743427711874,2030.82673568,0.0003354,120]
[356913818,1743427712778,207.45677681,0.0003354,30]
[356913819,1743427713205,1479.72245995,0.0003354,30]
[356913820,1743427714139,2581.59208507,9.828e-05,2]
[356913821,1743427714441,890.21661243,0.0003354,120]
[356913822,1743427714556,208.19495319,0.0003354,30]
[356913823,1743427714750,1000.0,0.0003354,30]
[356913824,1743427715216,1250.80565727,0.0003354,120]
[356913825,1743427715663,215.53648079,0.0001,2]
[356913826,1743427715730,429.72630137,0.0003354,90]
[356913830,1743427717830,1293.2201631,0.0003354,120]
[356913832,1743427718134,1098.22927238,0.0003354,120]
[356913833,1743427718955,721.39496202,0.0003354,120]
[356913834,1743427720765,978.52390598,0.0003354,120]
[356913835,1743427721032,177.44356302,0.0003354,120]
[356913836,1743427721744,210.65756092,0.0003354,120]
[356913837,1743427722351,258.25931076,0.000107,2]
[356913838,1743427722743,262.28932547,0.0003354,30]
[356913839,1743427723227,507.06735655,0.0003354,120]
[356913840,1743427723891,604.46408418,0.0003354,120]
[356913841,1743427724073,341.5511499,0.0003354,120]
[356913842,1743427726108,-610.3522,0.000149,2]
[356913843,1743427726132,-500.0,0.00014973,2]
[356913844,1743427726155,-8.1469045,0.00014999,2]
[356913845,1743427726179,-171.22152272,0.00014999,2]
[356913846,1743427726206,-90616.27937278,0.00015,2]
[356913847,1743427726488,179.71960924,0.0003354,30]
[356913848,1743427726538,1212.6880723,0.00010136,2]
[356913855,1743427791682,500.0,0.0003354,120]
[356913856,1743427807290,-5336.06,0.0001499,2]
[356913857,1743427807312,-5336.06,0.0001499,2]
[356913858,1743427807340,-500.0,0.00014999,2]
[356913859,1743427807362,-500.0,0.00014999,2]
[356913860,1743427807384,-500.0,0.00014999,2]
[356913861,1743427807408,-398.20089,0.00014999,2]
[356913862,1743427807433,-713365.67911,0.00015,2]
[356913863,1743427812494,500.0,0.0003354,120]
[356913864,1743427819657,500.0,0.0003354,120]
[356913865,1743427825981,500.0,0.0003354,120]
[356913875,1743427832236,-218.7,0.00014999,2]
[356913878,1743427832246,-609.90380991,0.00015,2]
[356913892,1743427832353,-2279.0,0.00015,2]
[356913894,1743427832364,-188718.49605952,0.00015,2]
[356913896,1743427832374,-167.39489527,0.00016079,2]
[356913898,1743427832383,-1713.65275224,0.00016179,2]
[356913900,1743427832393,-500.0,0.00016225,2]
[356913902,1743427832402,-640.88657214,0.00016279,2]
[356913904,1743427832412,-350.0,0.00016379,12]
[356913906,1743427832421,-150.0,0.00016379,2]
[356913908,1743427832431,-539.80639723,0.000164,2]
[356913910,1743427832440,-350.0,0.0001647,12]
[356913912,1743427832450,-150.0,0.0001647,2]
[356913914,1743427832459,-1713.65275224,0.00019926,2]
[356913916,1743427832468,-164.57677272,0.00020851,2]
[356913918,1743427832477,-999.99,0.00020951,2]
[356913919,1743427832487,-7109.48,0.00020951,2]
[356913920,1743427832497,-150.99,0.00020951,2]
[356913921,1743427832506,-3186.96,0.00020951,2]
[356913922,1743427832515,-1000.0,0.00021704,2]
[356913923,1743427832525,-350.0,0.00022605,12]
[356913924,1743427832535,-150.0,0.00022605,2]
[356913925,1743427832544,-1713.65275224,0.00023673,2]
[356913926,1743427832554,-5000.00643551,0.00024,5]
[356913927,1743427832563,-145183.738178,0.000248,2]
[356913928,1743427832573,-175.37965939,0.00026649,2]
[356913929,1743427832583,-158.28,0.00026849,2]
[356913930,1743427832592,-1713.65275224,0.00027419,2]
[356913931,1743427832601,-175.37965934,0.00029272,2]
[356913932,1743427832611,-413.0417903,0.0003,2]
[356913933,1743427832620,-1713.65275224,0.00031166,2]
[356913934,1743427832630,-1500.0,0.00031723,5]
[356913935,1743427832639,-175.37965934,0.00031895,2]
[356913936,1743427832648,-359.6240305,0.0003254,4]
[356913937,1743427832659,-166.86457121,0.0003317,2]
[356913938,1743427832668,-200.0,0.00034435,2]
[356913939,1743427832677,-175.37965934,0.00034518,2]
[356913940,1743427832687,-1713.65275224,0.00034913,2]